bitfinex/quotes_ETHUSD_20251010
["timestamp","ask_amount","ask_price","bid_price","bid_amount"]
[1760090255247,9.71910615,4329.2,4329.1,0.00100001]
[1760090256034,9.22518385,4329.2,4329.1,0.00100001]
[1760090256235,9.7191342,4329.2,4329.1,0.00100001]
[1760090260511,13.88442246,4329.2,4329.1,0.00100001]
[1760090261337,9.7191342,4329.2,4329.1,0.00100001]
[1760090264366,16.8682545,4329.2,4329.1,0.00100001]
[1760090264659,19.2732545,4329.2,4329.1,0.00100001]
[1760090265350,17.3532545,4329.2,4329.1,0.00100001]
[1760090266430,19.2732545,4329.2,4329.1,0.00100001]
[1760090267537,20.01573939,4329.2,4329.1,0.00100001]
[1760090269742,14.49184594,4329.2,4329.1,0.00100001]
[1760090273560,14.49104594,4329.2,4329.1,0.00100001]
[1760090274466,2.3101624,4328.7,4328.0,2.70862016]
[1760090274667,6.532,4328.6,4328.1,0.28243416]
[1760090274879,2.3103125,4328.5,4328.1,0.28243416]
[1760090275034,6.532,4328.4,4328.0,0.39810001]
[1760090277071,6.532,4328.4,4328.1,0.4409]
[1760090277262,6.532,4328.4,4328.1,2.75136978]
[1760090277585,6.532,4328.3,4328.1,0.4409]
[1760090277796,6.532,4328.2,4328.1,0.4409]
[1760090278094,6.532,4328.2,4328.1,0.72761425]
[1760090280789,6.532,4328.2,4328.1,0.28671425]
[1760090281308,6.532,4328.2,4328.1,0.72761425]
[1760090281472,6.532,4328.2,4328.1,3.0380969]
[1760090281773,6.532,4328.2,4328.1,0.72761425]
[1760090281970,6.532,4328.3,4328.2,2.31042927]
[1760090282301,6.532,4328.6,4328.2,0.97806663]
[1760090282503,6.532,4328.6,4328.3,0.4409]
[1760090282711,6.532,4328.6,4328.5,2.31026914]
[1760090282913,6.532,4328.9,4328.5,0.46400269]
[1760090283064,6.532,4328.9,4328.8,2.31010903]
[1760090283263,6.532,4328.9,4328.8,3.25944178]
[1760090283463,0.002,4329.2,4329.0,2.30998626]
[1760090283972,0.002,4329.2,4329.1,0.4409]
[1760090284372,0.002,4329.2,4329.1,2.77394843]
[1760090284605,0.002,4329.2,4329.1,2.75084895]
[1760090284764,0.002,4329.2,4329.1,3.42298221]
[1760090285407,0.002,4329.2,4329.1,4.11735834]
[1760090286099,0.002,4329.2,4329.1,4.14045782]
[1760090287001,0.002,4329.2,4329.1,6.03735834]
[1760090291793,0.002,4329.2,4329.1,5.34298221]
[1760090292307,0.002,4329.2,4329.1,3.03303326]
[1760090292503,0.002,4329.2,4329.1,2.05829948]
[1760090292674,0.002,4329.2,4329.1,4.36824843]
[1760090293104,0.002,4329.2,4329.1,4.80914843]
[1760090293312,0.002,4329.2,4329.1,4.78604895]
[1760090293805,0.002,4329.2,4329.1,2.4761]
[1760090293968,0.002,4329.2,4329.1,0.1152]
[1760090294175,0.3667,4329.2,4328.3,0.4409]
[1760090294408,0.3667,4329.2,4328.5,0.1152]
[1760090294581,0.1152,4328.8,4328.2,0.1152]
[1760090294791,0.1152,4328.8,4328.1,0.1162]
[1760090295581,0.1144,4328.8,4328.1,2.78289357]
[1760090296114,2.42451272,4328.8,4328.1,2.78289357]
[1760090296811,2.42451272,4328.8,4328.1,0.47241571]
[1760090298203,2.42451272,4328.8,4328.1,2.78289723]
[1760090298815,0.1144,4328.8,4328.1,0.1162]
[1760090299015,2.31021577,4328.6,4328.1,0.1162]
[1760090299186,0.2495,4328.5,4328.1,0.1162]
[1760090299383,2.31037533,4328.4,4328.1,0.001]
[1760090299583,0.3647,4328.5,4328.1,0.001]
[1760090299784,0.2495,4328.3,4328.1,0.001]
[1760090300127,2.31042927,4328.2,4328.1,0.001]
[1760090300628,2.55992927,4328.2,4328.1,0.001]
[1760090301126,3.19352927,4328.2,4328.1,0.001]
[1760090304439,3.64538596,4328.2,4328.1,0.001]
[1760090305242,0.45185669,4328.2,4328.1,0.001]
[1760090305412,2.31042927,4328.2,4328.1,0.001]
[1760090305607,2.77896492,4328.2,4328.1,0.001]
[1760090305824,0.46853565,4328.2,4328.1,0.001]
[1760090306039,8.935,4328.3,4328.1,0.001]
[1760090307031,11.24539424,4328.3,4328.1,0.001]
[1760090308043,0.2495,4328.2,4328.1,0.001]
[1760090308638,2.55992927,4328.2,4328.1,0.001]
[1760090309546,3.02564659,4328.2,4328.1,0.001]
[1760090310110,0.46571732,4328.2,4328.1,0.001]
[1760090310448,11.24538171,4328.3,4328.1,0.001]
[1760090310625,2.31042927,4328.2,4328.1,0.001]
[1760090311040,2.55992927,4328.2,4328.1,0.001]
[1760090312323,3.19352927,4328.2,4328.1,0.001]
[1760090312524,3.65411816,4328.2,4328.1,0.001]
[1760090317748,3.65331816,4328.2,4328.1,0.001]
[1760090325854,12.59131816,4328.2,4328.1,0.001]
[1760090329383,13.08590051,4328.2,4328.1,0.001]
[1760090329584,16.76223077,4328.2,4328.1,0.001]
[1760090332991,12.59131816,4328.2,4328.1,0.001]
[1760090333168,16.76223077,4328.2,4328.1,0.001]
[1760090334004,17.25690883,4328.2,4328.1,0.001]
[1760090334207,19.17690883,4328.2,4328.1,0.001]
[1760090339749,19.17610883,4328.2,4328.1,0.001]
[1760090344968,19.17607638,4328.2,4328.1,0.001]
[1760090352384,2.94429621,4327.7,4327.6,0.001]
[1760090352584,13.64820882,4327.7,4327.6,0.001]
[1760090352759,14.14285443,4327.7,4327.6,0.001]
[1760090352958,14.39205443,4327.7,4327.6,0.001]
[1760090354753,16.31205443,4327.7,4327.6,0.001]
[1760090355660,3.43894182,4327.7,4327.6,0.001]
[1760090355863,12.62705532,4327.7,4327.6,0.001]
[1760090356082,12.13249621,4327.7,4327.6,0.001]
[1760090356287,12.62706285,4327.7,4327.6,0.001]
[1760090357093,11.88329621,4327.7,4327.6,0.001]
[1760090357292,12.13249621,4327.7,4327.6,0.001]
[1760090357815,12.62707526,4327.7,4327.6,0.001]
[1760090357985,12.62707605,4327.7,4327.6,0.001]
[1760090359380,16.79798866,4327.7,4327.6,0.001]
[1760090359696,12.62707605,4327.7,4327.6,0.001]
[1760090359899,0.249,4328.0,4327.6,0.001]
[1760090360103,3.61558943,4327.9,4327.6,0.001]
[1760090360286,2.31064926,4327.8,4327.6,0.001]
[1760090360489,6.533,4327.7,4327.6,0.001]
[1760090361393,0.249,4328.0,4327.6,0.001]
[1760090361394,2.55955275,4328.0,4327.6,0.001]
[1760090361593,8.84359341,4327.9,4327.6,0.001]
[1760090361904,6.533,4327.8,4327.6,0.001]
[1760090362104,6.533,4327.7,4327.6,0.001]
[1760090362913,8.84369621,4327.7,4327.6,0.001]
[1760090363400,6.533,4327.7,4327.6,0.001]
[1760090364676,0.6336,4328.1,4327.6,0.001]
[1760090364881,0.1152,4327.7,4327.6,0.3029387]
[1760090365077,0.1152,4327.7,4327.6,0.7563387]
[1760090365717,6.532,4327.9,4327.6,0.7563387]
[1760090365889,6.532,4327.9,4327.7,2.76408473]
[1760090366222,6.532,4327.9,4327.8,0.4534]
[1760090367086,0.1152,4328.0,4327.8,0.76010923]
[1760090367282,0.1152,4328.0,4327.6,2.61367631]
[1760090367482,0.1152,4328.0,4327.7,0.4707]
[1760090367716,0.1152,4328.0,4327.8,0.02310642]
[1760090367918,0.1152,4328.0,4327.8,0.49380642]
[1760090368100,0.1152,4328.0,4327.8,0.02310642]
[1760090368311,0.1152,4328.0,4327.6,0.27983121]
[1760090368511,0.1152,4328.0,4327.7,0.30613256]
[1760090368817,0.1152,4328.0,4327.6,0.75053121]
[1760090368984,0.1152,4328.0,4327.7,0.4707]
[1760090369610,0.1152,4328.0,4327.6,2.59056778]
[1760090369825,4.326,4328.9,4327.6,2.59056778]
[1760090369826,0.002,4328.8,4327.7,0.4707]
[1760090370022,2.31031086,4328.5,4327.6,0.75053121]
[1760090370190,6.7681,4328.7,4327.6,0.75053121]
[1760090370191,5.87636858,4328.4,4327.7,1.00073354]
[1760090370384,3.566,4328.4,4327.7,3.31142458]
[1760090370936,0.45763586,4328.6,4327.8,4.17091261]
[1760090371079,0.002,4328.8,4328.3,4.38871261]
[1760090371285,0.002,4328.8,4328.3,0.2178]
[1760090371533,0.002,4328.8,4328.4,0.4707]
[1760090371754,0.002,4328.8,4328.4,0.7192]
[1760090371964,0.002,4328.8,4328.6,2.3101714]
[1760090372128,0.002,4328.8,4328.7,2.3101624]
[1760090372314,0.002,4328.8,4328.7,2.33326402]
[1760090372651,0.002,4328.8,4328.7,3.73422365]
[1760090374238,0.002,4328.8,4328.7,0.95336125]
[1760090374551,0.002,4328.8,4328.4,3.02949679]
[1760090374855,0.002,4328.8,4328.5,2.78096435]
[1760090375455,0.002,4328.8,4328.6,0.4707]
[1760090376034,0.002,4328.8,4328.6,2.78088631]
[1760090376436,0.002,4328.8,4328.6,0.4707]
[1760090376633,0.002,4328.8,4328.3,0.66992123]
[1760090376825,0.002,4328.8,4328.7,0.09259741]
[1760090377150,0.002,4328.8,4328.3,2.33346686]
[1760090377550,0.002,4328.8,4328.3,3.49871339]
[1760090378722,0.002,4328.8,4328.4,0.4707]
[1760090378923,0.002,4328.8,4328.5,0.34987134]
[1760090379244,0.002,4328.8,4328.5,0.82057134]
[1760090379857,0.1172,4328.8,4328.5,0.34987134]
[1760090381056,0.1172,4328.8,4328.0,6.6522]
[1760090381241,0.6336,4328.3,4327.6,0.001]
[1760090381562,0.1152,4328.0,4327.6,0.001]
[1760090381853,0.1152,4328.0,4327.7,0.4707]
[1760090382153,0.002,4328.8,4327.8,0.49380642]
[1760090382356,0.002,4328.8,4328.5,2.31025939]
[1760090382554,0.002,4328.8,4328.7,2.5279624]
[1760090383125,0.002,4328.8,4328.7,2.9986624]
[1760090383849,0.0012,4328.8,4328.7,2.9986624]
[1760090387468,0.0012,4328.8,4328.7,3.09125509]
[1760090387671,0.0012,4328.8,4328.7,4.28490411]
[1760090388771,0.0012,4328.8,4328.7,4.30800573]
[1760090389175,0.0012,4328.8,4328.7,3.11435671]
[1760090390479,0.0012,4328.8,4328.7,5.03435671]
[1760090390659,0.0012,4328.8,4328.7,5.01125509]
[1760090391843,0.0012,4328.8,4328.7,2.01259269]
[1760090392054,0.0012,4328.8,4328.7,2.12779269]
[1760090392260,0.0012,4328.8,4328.7,0.20779269]
[1760090392637,0.0012,4328.8,4328.5,0.1152]
[1760090393064,0.0012,4328.8,4328.5,2.88876362]
[1760090393253,0.0012,4328.8,4328.6,1.49812641]
[1760090393656,0.0012,4328.8,4328.7,2.7734624]
[1760090394660,0.0012,4328.8,4328.7,3.0058624]
[1760090395702,0.0012,4328.8,4328.7,3.02896402]
[1760090397316,0.0012,4328.8,4328.7,2.56566402]
[1760090397523,0.0012,4328.8,4328.7,9.6634274]
[1760090397821,0.0012,4328.8,4328.7,10.1188274]
[1760090399520,0.0012,4328.8,4328.7,0.821265]
[1760090399714,0.0012,4328.8,4328.7,6.7644]
[1760090399870,0.0012,4328.8,4328.7,6.6472]
[1760090400421,0.0012,4328.8,4328.7,0.1152]
[1760090400707,2.56502685,4328.8,4328.6,0.001]
[1760090400910,0.3689,4328.7,4328.6,0.001]
[1760090401109,0.1152,4328.7,4328.6,0.001]
[1760090401470,0.0012,4328.8,4328.6,0.001]
[1760090401975,2.3101624,4328.7,4328.6,0.001]
[1760090402171,2.6790624,4328.7,4328.6,0.001]
[1760090402373,3.3126624,4328.7,4328.6,0.001]
[1760090403296,3.1974624,4328.7,4328.6,0.001]
[1760090405589,0.6336,4328.7,4328.6,0.001]
[1760090405926,0.6328,4328.7,4328.6,0.001]
[1760090406095,2.9429624,4328.7,4328.6,0.001]
[1760090406291,3.1966624,4328.7,4328.6,0.001]
[1760090408889,2.9429624,4328.7,4328.6,0.001]
[1760090409128,0.0012,4328.8,4328.6,0.001]
[1760090409294,2.31132602,4328.8,4328.6,0.001]
[1760090409488,2.9437624,4328.7,4328.6,0.001]
[1760090411430,3.1974624,4328.7,4328.6,0.001]
[1760090417038,3.1994624,4328.7,4328.6,0.001]
[1760090421413,9.7304624,4328.7,4328.6,0.001]
[1760090422050,8.8431624,4328.7,4328.6,0.001]
[1760090422258,9.4767624,4328.7,4328.6,0.001]
[1760090422625,9.7304624,4328.7,4328.6,0.001]
[1760090423160,9.4767624,4328.7,4328.6,0.001]
[1760090424738,9.7304624,4328.7,4328.6,0.001]
[1760090428145,9.7296624,4328.7,4328.6,0.001]
[1760090431848,6.533,4328.7,4328.6,0.001]
[1760090432045,8.8431624,4328.7,4328.6,0.001]
[1760090434462,9.0968624,4328.7,4328.6,0.001]
[1760090435894,6.533,4328.7,4328.6,0.001]
[1760090436390,9.0968624,4328.7,4328.6,0.001]
[1760090438990,6.533,4328.7,4328.6,0.001]
[1760090439213,0.002,4328.7,4328.6,0.4401]
[1760090439357,0.002,4328.7,4328.6,3.02536302]
[1760090439684,0.002,4328.7,4328.6,3.16366517]
[1760090440379,0.002,4328.7,4328.6,0.8534494]
[1760090441085,0.002,4328.7,4328.6,3.16366517]
[1760090442896,0.002,4328.7,4328.6,5.08366517]
[1760090443067,0.002,4328.7,4328.6,5.06056302]
[1760090445660,0.002,4328.7,4328.6,2.31124725]
[1760090445860,0.002,4328.7,4328.6,0.001]
[1760090447676,2.5549624,4328.7,4328.6,0.001]
[1760090450099,2.5541624,4328.7,4328.6,0.001]
[1760090454208,0.244,4328.7,4328.6,0.001]
[1760090454512,0.0012,4328.7,4328.6,0.001]
[1760090456577,0.0012,4328.7,4328.6,0.4546]
[1760090456991,0.0012,4328.7,4328.6,0.74261736]
[1760090458521,0.0012,4328.7,4328.6,0.76571951]
[1760090459084,0.0012,4328.7,4328.6,3.07593528]
[1760090463617,0.0012,4328.7,4328.6,3.19113528]
[1760090463815,0.0012,4328.7,4328.6,5.11113528]
[1760090464027,0.0012,4328.7,4328.6,5.18061061]
[1760090465522,1e-08,4328.8,4328.7,4.2301624]
[1760090465745,1e-08,4328.8,4328.7,10.89723786]
[1760090465892,1e-08,4329.3,4329.2,6.47894969]
[1760090466096,1e-08,4329.3,4329.2,17.44914969]
[1760090466393,1e-08,4329.3,4329.2,17.91814969]
[1760090467917,1e-08,4329.3,4329.2,18.01070275]
[1760090468120,1e-08,4329.3,4329.2,20.2624732]
[1760090471746,0.002,4330.1,4329.6,2.30968218]
[1760090471929,0.002,4330.1,4330.0,6.47852292]
[1760090472232,0.0012,4330.1,4330.0,17.44672292]
[1760090472437,0.0012,4330.1,4330.0,17.5392657]
[1760090472667,0.0012,4330.1,4330.0,19.99314633]
[1760090473154,0.0012,4330.1,4330.0,6.89109223]
[1760090473352,0.0012,4330.1,4330.0,8.9600657]
[1760090473554,0.0012,4330.1,4330.0,15.4880657]
[1760090473757,0.0012,4330.1,4330.0,17.8920657]
[1760090475356,1e-08,4330.2,4330.1,4.22941548]
[1760090475656,1e-08,4330.2,4330.1,4.85690963]
[1760090475856,1e-08,4330.2,4330.1,7.08558593]
[1760090476261,1e-08,4330.2,4330.1,11.25464003]
[1760090476447,1e-08,4330.2,4330.1,16.10911865]
[1760090476647,1e-08,4330.2,4330.1,20.27817275]
[1760090477727,1e-08,4330.9,4330.2,2.30936215]
[1760090477929,1e-08,4330.9,4330.8,6.0890541]
[1760090478265,1e-08,4330.9,4330.8,14.9250963]
[1760090478477,1e-08,4330.9,4330.8,15.48662345]
[1760090483360,1e-08,4330.9,4330.8,15.60182345]
[1760090485478,0.002,4331.2,4330.8,15.60182345]
[1760090485479,0.002,4331.2,4331.1,2.30888227]
[1760090485775,1e-08,4331.9,4331.7,4.22856245]
[1760090485945,1e-08,4331.9,4331.8,10.77659425]
[1760090486134,1e-08,4331.9,4331.8,11.30930916]
[1760090486558,1e-08,4331.9,4331.8,11.40181427]
[1760090491480,0.00200001,4331.9,4331.8,11.40181427]
[1760090491648,0.00200001,4331.9,4331.8,13.60666276]
[1760090493375,0.00200001,4331.9,4331.8,16.00766276]
[1760090493680,0.00200001,4331.9,4331.8,20.17671686]
[1760090494476,0.00120001,4331.9,4331.8,20.17671686]
[1760090495239,0.00120001,4331.9,4331.8,16.00766276]
[1760090495478,0.00120001,4331.9,4331.8,20.17671686]
[1760090500678,1e-08,4332.1,4332.0,2.30840258]
[1760090500883,1e-08,4332.1,4332.0,13.02625705]
[1760090501047,1e-08,4332.1,4332.0,13.45267303]
[1760090501468,1e-08,4332.1,4332.0,13.54516937]
[1760090504844,0.002,4332.4,4332.3,2.30824273]
[1760090505140,0.002,4332.4,4332.3,15.05757925]
[1760090505429,0.002,4332.4,4332.3,17.56674065]
[1760090505611,0.002,4332.4,4332.3,17.6592263]
[1760090506143,0.01,4333.9,4333.2,2.30776331]
[1760090506304,0.01,4333.9,4333.2,15.51701741]
[1760090506508,0.01,4333.9,4333.2,17.88651741]
[1760090506705,0.01,4333.9,4333.2,19.89243715]
[1760090506935,0.01,4333.9,4333.2,19.98491168]
[1760090508106,0.01,4333.9,4333.2,11.05991168]
[1760090508315,0.01,4333.9,4333.2,19.98491168]
[1760090509296,0.01,4333.9,4333.2,11.05991168]
[1760090509501,0.01,4333.9,4333.2,19.98391168]
[1760090510598,0.01,4333.9,4333.2,11.05991168]
[1760090510810,0.01,4333.9,4333.2,19.98291168]
[1760090511430,0.01,4333.9,4333.2,15.81385758]
[1760090515215,5.17883632,4333.3,4331.8,0.001]
[1760090515522,0.6336,4333.1,4332.0,0.6413]
[1760090515847,0.6336,4333.1,4332.3,2.30824017]
[1760090516046,2.78253864,4333.3,4332.4,1.0043]
[1760090516047,2.94139689,4333.2,4332.4,1.0043]
[1760090516237,2.94147691,4333.0,4332.4,1.0043]
[1760090516438,2.94067691,4333.0,4332.4,1.0043]
[1760090517014,0.002,4333.3,4332.4,0.576]
[1760090517217,2.30807736,4332.7,4332.4,0.576]
[1760090517418,0.2441,4332.6,4332.4,0.576]
[1760090517733,2.55224099,4332.5,4332.0,0.747]
[1760090517921,2.55224099,4332.5,4331.9,0.747]
[1760090517922,0.2441,4332.5,4331.9,0.747]
[1760090518318,2.30803508,4332.7,4332.0,0.02308402]
[1760090518518,2.30808941,4332.6,4332.0,0.02308402]
[1760090519054,2.30803423,4332.7,4332.0,0.02308402]
[1760090519546,0.6336,4332.7,4332.0,2.33148417]
[1760090519745,0.6336,4332.9,4332.0,0.02308402]
[1760090519948,0.6336,4332.7,4332.0,0.02308402]
[1760090520148,0.2441,4333.0,4332.0,0.02308402]
[1760090520462,6.45,4333.2,4332.0,0.02308402]
[1760090520463,2.94143376,4333.1,4332.3,2.30823589]
[1760090520766,2.30793026,4332.9,4332.1,0.4485]
[1760090520930,2.30793026,4332.9,4331.9,0.747]
[1760090520931,0.6336,4332.9,4331.9,0.747]
[1760090521262,2.30815983,4332.5,4331.9,0.747]
[1760090521421,2.30815983,4332.5,4331.8,4.742]
[1760090521623,2.30821786,4332.4,4331.9,6.521]
[1760090521932,2.30822658,4332.4,4331.8,0.001]
[1760090522139,2.30814743,4332.5,4331.8,0.001]
[1760090522462,0.8777,4332.6,4331.8,0.001]
[1760090522619,2.30818196,4332.5,4331.8,2.30950576]
[1760090522821,2.30818196,4332.5,4331.8,0.001]
[1760090523459,0.8777,4332.6,4331.8,2.30950664]
[1760090523460,3.18579746,4332.6,4331.8,2.30950664]
[1760090523841,3.18579746,4332.6,4331.9,2.30844225]
[1760090524022,0.8777,4332.6,4332.0,2.33146523]
[1760090524646,0.8777,4332.6,4332.0,0.02308402]
[1760090524822,2.30814458,4332.5,4332.0,0.02308402]
[1760090525038,2.30818973,4332.4,4331.8,0.001]
[1760090525365,0.1152,4332.4,4331.8,0.001]
[1760090525535,2.30845587,4331.9,4331.8,0.001]
[1760090525736,3.15965587,4331.9,4331.8,0.001]
[1760090526064,3.42005587,4331.9,4331.8,0.001]
[1760090527651,2.94205587,4331.9,4331.8,0.001]
[1760090528172,3.20245587,4331.9,4331.8,0.001]
[1760090528331,3.42005587,4331.9,4331.8,0.001]
[1760090530722,5.34005587,4331.9,4331.8,0.001]
[1760090536669,5.73516497,4331.9,4331.8,0.001]
[1760090536871,12.25916497,4331.9,4331.8,0.001]
[1760090537937,11.86405587,4331.9,4331.8,0.001]
[1760090538338,11.86325587,4331.9,4331.8,0.001]
[1760090539173,12.85410223,4331.9,4331.8,0.001]
[1760090539374,14.26725587,4331.9,4331.8,0.001]
[1760090539686,3.41925587,4331.9,4331.8,0.001]
[1760090539838,11.71445587,4331.9,4331.8,0.001]
[1760090540376,12.34805587,4331.9,4331.8,0.001]
[1760090542281,0.6336,4331.9,4331.8,0.001]
[1760090542454,7.419,4331.9,4331.8,0.001]
[1760090542638,9.94505587,4331.9,4331.8,0.001]
[1760090545297,7.1586,4331.9,4331.8,0.001]
[1760090545660,9.46705587,4331.9,4331.8,0.001]
[1760090545844,6.525,4331.9,4331.8,0.001]
[1760090546240,6.7854,4331.9,4331.8,0.001]
[1760090547344,9.09385587,4331.9,4331.8,0.001]
[1760090547754,6.7854,4331.9,4331.8,0.001]
[1760090548485,6.525,4331.9,4331.8,0.001]
[1760090548989,6.7854,4331.9,4331.8,0.001]
[1760090549189,6.9006,4331.9,4331.8,0.001]
[1760090549392,0.1152,4331.9,4331.8,0.001]
[1760090549569,0.1152,4332.4,4331.8,0.4394]
[1760090549769,0.1152,4332.4,4331.9,2.61781954]
[1760090549969,0.1152,4332.4,4332.0,0.4384]
[1760090550204,0.1152,4332.4,4332.1,0.46148349]
[1760090550969,2.57027147,4333.0,4332.1,0.46148349]
[1760090550970,0.2624,4333.0,4332.2,0.4384]
[1760090551171,0.2624,4333.0,4332.3,0.02308242]
[1760090551172,0.1152,4332.7,4332.3,0.02308242]
[1760090551679,0.1152,4332.7,4332.4,0.4384]
[1760090551879,0.002,4333.0,4332.5,0.02308136]
[1760090552070,0.002,4333.0,4332.7,2.30798026]
[1760090552274,0.002,4333.0,4332.8,2.33104308]
[1760090552611,0.002,4333.0,4332.6,0.1152]
[1760090552975,0.002,4333.0,4332.2,2.30827559]
[1760090553319,0.002,4333.0,4332.4,0.1152]
[1760090554095,0.002,4333.0,4332.5,2.30811366]
[1760090554295,0.002,4333.0,4332.4,0.1152]
[1760090554596,0.002,4333.0,4332.5,2.30813618]
[1760090555007,0.002,4333.0,4332.5,0.4384]
[1760090555321,0.002,4333.0,4332.6,0.37667689]
[1760090555694,0.002,4333.0,4332.7,0.02308029]
[1760090556491,0.002,4333.0,4332.8,0.4384]
[1760090556696,0.002,4333.0,4332.9,0.02307923]
[1760090556894,0.002,4333.0,4332.9,2.33100233]
[1760090557127,0.002,4333.0,4332.9,3.05786256]
[1760090557438,0.002,4333.0,4332.9,3.17306256]
[1760090557796,0.002,4333.0,4332.9,3.14998333]
[1760090558296,0.002,4333.0,4332.9,0.84206023]
[1760090558495,0.002,4333.0,4332.9,0.1152]
[1760090558841,0.002,4333.0,4332.9,2.8615231]
[1760090560520,0.0012,4333.0,4332.9,2.8615231]
[1760090560716,0.0012,4333.0,4332.9,0.5536]
[1760090560916,0.0012,4333.0,4332.9,0.1152]
[1760090561122,0.0012,4333.0,4332.9,0.65915899]
[1760090561303,0.0012,4333.0,4332.9,1.09755899]
[1760090561826,0.0012,4333.0,4332.9,0.65915899]
[1760090562233,0.0012,4333.0,4332.9,0.1152]
[1760090563942,0.0012,4333.0,4332.9,0.5536]
[1760090564540,0.0012,4333.0,4332.9,0.1152]
[1760090567257,0.0012,4333.0,4332.8,0.02307976]
[1760090567655,0.0012,4333.0,4332.6,6.522]
[1760090567814,0.0012,4333.0,4332.7,2.78798926]
[1760090568247,0.0012,4333.0,4332.8,0.4569]
[1760090568634,0.0012,4333.0,4332.9,0.4569]
[1760090570052,0.0012,4333.0,4332.9,0.47997923]
[1760090570552,0.0012,4333.0,4332.9,0.4569]
[1760090570855,0.0012,4333.0,4332.7,0.02308029]
[1760090571260,0.0012,4333.0,4332.5,0.1152]
[1760090571450,2.30908122,4333.0,4332.5,6.6372]
[1760090571647,0.2432,4332.9,4332.5,6.6372]
[1760090572521,0.0012,4333.0,4332.5,6.6372]
[1760090573776,0.0012,4333.0,4332.5,8.945319]
[1760090574382,2.3080152,4332.8,4332.5,0.1152]
[1760090574636,2.5512152,4332.8,4332.3,0.1152]
[1760090574775,6.46867574,4332.6,4331.9,6.522]
[1760090574941,2.30812277,4332.6,4332.0,2.0352]
[1760090575137,0.3584,4332.7,4332.0,0.1152]
[1760090575138,2.30815211,4332.5,4332.0,0.1152]
[1760090575339,0.2432,4332.4,4332.0,0.1152]
[1760090576371,2.30809501,4332.6,4332.0,0.1152]
[1760090576775,0.3584,4332.7,4332.0,0.1152]
[1760090576944,2.3080829,4332.6,4332.0,0.1152]
[1760090579310,4.16055297,4332.6,4332.0,0.1152]
[1760090579469,0.3584,4332.5,4331.8,0.001]
[1760090579812,2.30834929,4332.1,4332.0,0.001]
[1760090580173,2.55154929,4332.1,4332.0,0.001]
[1760090581281,3.18514929,4332.1,4332.0,0.001]
[1760090581482,4.07444361,4332.1,4332.0,0.001]
[1760090581810,5.99444361,4332.1,4332.0,0.001]
[1760090582156,5.8931457,4332.1,4332.0,0.001]
[1760090582411,10.05369867,4332.1,4332.0,0.001]
[1760090582584,10.05289867,4332.1,4332.0,0.001]
[1760090582781,10.44800777,4332.1,4332.0,0.001]
[1760090583914,10.05289867,4332.1,4332.0,0.001]
[1760090584116,5.8923457,4332.1,4332.0,0.001]
[1760090584343,0.6336,4332.1,4332.0,0.001]
[1760090584499,9.07354929,4332.1,4332.0,0.001]
[1760090584818,12.12012155,4332.1,4332.0,0.001]
[1760090585512,11.62714929,4332.1,4332.0,0.001]
[1760090587226,11.62814929,4332.1,4332.0,0.001]
[1760090587426,14.03114929,4332.1,4332.0,0.001]
[1760090587993,12.11114929,4332.1,4332.0,0.001]
[1760090589408,11.86794929,4332.1,4332.0,0.001]
[1760090589705,2.94194929,4332.1,4332.0,0.001]
[1760090589916,9.46494929,4332.1,4332.0,0.001]
[1760090591011,9.70814929,4332.1,4332.0,0.001]
[1760090592130,9.46494929,4332.1,4332.0,0.001]
[1760090592719,9.70814929,4332.1,4332.0,0.001]
[1760090593776,9.46494929,4332.1,4332.0,0.001]
[1760090594068,2.30824496,4332.3,4332.0,0.001]
[1760090594264,4.71213916,4332.5,4332.0,0.4616]
[1760090594265,0.1152,4332.2,4332.0,0.4616]
[1760090594465,2.42350953,4332.2,4332.0,0.4616]
[1760090594631,0.1152,4332.2,4332.0,0.001]
[1760090594833,0.1152,4332.2,4332.1,0.4606]
[1760090595223,2.30802083,4332.8,4332.1,0.4606]
[1760090595224,0.1152,4332.7,4332.1,0.4606]
[1760090595477,0.1152,4332.7,4332.2,0.02308296]
[1760090595629,0.1152,4332.7,4332.3,0.4606]
[1760090595943,0.1152,4332.7,4332.1,2.30834582]
[1760090595944,0.0012,4333.0,4332.5,2.30813618]
[1760090596144,0.0012,4333.0,4332.6,0.30226263]
[1760090596325,0.0012,4333.0,4332.8,2.42317335]
[1760090596528,0.0012,4333.0,4332.9,0.02307923]
[1760090596725,0.0012,4333.0,4332.9,0.48367923]
[1760090597361,0.0012,4333.0,4332.9,2.79160233]
[1760090597578,0.0012,4333.0,4332.9,3.34100828]
[1760090597726,0.0012,4333.0,4332.9,3.31792905]
[1760090598733,0.0012,4333.0,4332.9,3.34100828]
[1760090598942,0.0012,4333.0,4332.9,0.54940595]
[1760090599132,0.0012,4333.0,4332.8,0.1152]
[1760090599671,0.0012,4333.0,4332.8,0.5758]
[1760090600468,0.0012,4333.0,4332.8,2.88377479]
[1760090600662,0.0012,4333.0,4332.8,0.1152]
[1760090601161,0.0012,4333.0,4332.3,2.30820695]
[1760090601162,0.0012,4333.0,4332.5,0.1152]
[1760090601361,2.3079617,4332.9,4332.2,0.4606]
[1760090601573,2.307984,4332.8,4332.3,0.1152]
[1760090601924,0.1164,4333.0,4332.3,0.1152]
[1760090602180,0.1164,4333.0,4332.5,2.3081246]
[1760090602326,0.1164,4333.0,4332.6,0.4606]
[1760090602526,0.1164,4333.0,4332.7,0.4606]
[1760090602764,0.1164,4333.0,4332.7,0.48368029]
[1760090603059,0.1164,4333.0,4332.7,0.4606]
[1760090604464,0.1164,4333.0,4332.4,2.76873837]